bitfinex/quotes_ETHUSD_20260207
["timestamp","ask_amount","ask_price","bid_price","bid_amount"]
[1770498169797,1.18832588,2103.8,2102.9,1.22232095]
[1770498171799,1.18843886,2103.6,2102.8,1.18886011]
[1770498172297,1.52722923,2103.5,2102.4,6.40611]
[1770498172525,1.52722923,2103.5,2102.4,1.18909311]
[1770498172713,1.52722923,2103.5,2102.3,4.79017448]
[1770498172714,1.52722923,2103.5,2102.6,1.22249474]
[1770498173094,1.52722923,2103.5,2102.5,1.1890163]
[1770498173623,5.34488678,2102.6,2101.7,0.001]
[1770498173937,2.71634642,2102.4,2101.7,0.001]
[1770498174242,1.52722923,2102.3,2101.3,0.1381965]
[1770498174601,1.18911719,2102.4,2100.9,0.03349122]
[1770498174602,1.52722923,2102.0,2100.9,0.03349122]
[1770498174919,1.52722923,2102.0,2100.8,0.001]
[1770498174920,1.52722923,2102.0,2101.3,0.03349122]
[1770498175127,1.52722923,2102.0,2101.0,0.03349122]
[1770498175422,1.52722923,2102.0,2101.1,0.03349122]
[1770498176223,2.71662929,2101.9,2101.2,0.03349122]
[1770498176726,2.71662929,2101.9,2100.8,0.03449122]
[1770498176905,2.71662929,2101.9,2101.2,0.03349122]
[1770498177100,2.71662929,2101.9,2100.8,0.03449122]
[1770498177305,2.71662929,2101.9,2101.2,0.03349122]
[1770498177537,2.71662929,2101.9,2100.8,0.03449122]
[1770498177832,1.52722923,2101.8,2101.2,0.03349122]
[1770498178033,1.52722923,2101.8,2100.8,0.03449122]
[1770498178239,1.52722923,2101.8,2100.6,0.03349122]
[1770498178240,5.34488678,2101.4,2100.6,0.03349122]
[1770498178446,1.55315298,2101.3,2100.0,1.22393741]
[1770498178735,1.55315298,2101.3,2100.3,1.46149122]
[1770498178905,1.55315298,2101.3,2100.4,0.03349122]
[1770498180125,1.1897963,2101.2,2100.4,0.03349122]
[1770498180327,1.55315298,2100.9,2100.1,3.35849122]
[1770498180707,1.55315298,2100.9,2099.6,1.22417822]
[1770498180939,5.34488678,2101.0,2100.3,0.03349122]
[1770498181227,2.74294928,2101.2,2100.6,0.03349122]
[1770498181418,2.74294928,2101.2,2100.9,0.03349122]
[1770498181621,1.18977442,2101.3,2101.0,0.03349122]
[1770498181825,1.18972202,2101.4,2101.0,0.03349122]
[1770498182404,6.31122684,2101.7,2101.0,0.03349122]
[1770498183242,1.55315298,2101.6,2101.0,3.325]
[1770498183539,4.75807386,2101.7,2101.2,0.03349122]
[1770498183917,6.31079537,2101.9,2101.5,0.03349122]
[1770498183918,2.74259369,2101.9,2101.5,0.03349122]
[1770498184233,2.74259369,2101.9,2101.2,0.03349122]
[1770498184435,1.1892869,2102.1,2101.5,0.03349122]
[1770498185318,6.89803976,2102.2,2101.5,0.03349122]
[1770498185519,2.74241401,2102.2,2101.5,0.03349122]
[1770498185924,2.74241401,2102.2,2101.8,0.03349122]
[1770498186654,1.55315298,2101.8,2099.1,0.03349122]
[1770498186839,5.34488678,2101.9,2100.8,0.03349122]
[1770498186840,6.89803976,2101.3,2100.8,0.03349122]
[1770498187043,6.89803976,2101.3,2100.5,1.22368045]
[1770498187339,6.89803976,2101.3,2101.0,0.03349122]
[1770498187844,1.55315298,2101.8,2101.1,0.03349122]
[1770498188013,5.34488678,2101.5,2101.1,0.03349122]
[1770498188216,5.34488678,2101.5,2100.9,0.03349122]
[1770498188415,1.55315298,2101.8,2100.9,0.03349122]
[1770498188941,5.34488678,2101.2,2100.7,0.03349122]
[1770498189162,6.89803976,2101.2,2100.2,0.03349122]
[1770498189338,6.89803976,2101.2,2100.5,0.03349122]
[1770498189642,1.55315298,2101.1,2100.5,0.03349122]
[1770498190019,1.55315298,2101.1,2100.2,0.03349122]
[1770498190424,1.55315298,2101.1,2100.5,0.03349122]
[1770498190632,1.55315298,2101.1,2100.2,0.03349122]
[1770498190832,1.55315298,2101.1,2100.5,0.03349122]
[1770498191530,1.18990956,2101.0,2100.2,0.03349122]
[1770498191853,1.18990956,2101.0,2100.5,0.03349122]
[1770498192044,1.18989023,2101.1,2100.8,0.03349122]
[1770498192254,4.758053,2101.8,2101.5,0.03349122]
[1770498192255,2.74264917,2101.8,2101.5,0.03349122]
[1770498192574,1.18943562,2101.9,2101.1,0.03349122]
[1770498192861,1.18943562,2101.9,2101.4,0.03349122]
[1770498193358,0.002,2101.5,2100.8,0.03349122]
[1770498193664,0.002,2101.5,2100.9,0.03349122]
[1770498193665,1.18968306,2101.4,2100.9,0.03349122]
[1770498195531,0.002,2101.5,2101.2,0.03349122]
[1770498200351,0.002,2101.5,2100.9,1.2234168]
[1770498200744,0.002,2101.5,2101.2,0.03349122]
[1770498200945,0.002,2101.5,2101.0,1.18990502]
[1770498201155,0.002,2101.5,2101.2,0.03349122]
[1770498201361,0.002,2101.5,2101.0,1.18990502]
[1770498201669,0.002,2101.5,2101.2,0.03349122]
[1770498202267,0.002,2101.5,2101.3,0.03349122]
[1770498205971,0.002,2101.5,2100.9,1.22341467]
[1770498206161,0.002,2101.5,2101.2,0.03349122]
[1770498206361,0.002,2101.5,2101.4,0.001]
[1770498207364,0.002,2101.5,2101.2,0.03349122]
[1770498207572,0.002,2101.5,2100.9,1.2234254]
[1770498207775,0.002,2101.5,2101.2,0.03349122]
[1770498208681,0.002,2101.7,2101.2,0.03349122]
[1770498208682,0.002,2101.7,2101.2,1.2232834]
[1770498208886,0.002,2101.7,2101.6,0.03349122]
[1770498212280,0.002,2101.7,2101.5,1.18960496]
[1770498212483,0.002,2101.7,2101.6,0.03349122]
[1770498212784,0.002,2101.7,2101.5,1.22307069]
[1770498213083,1.19112673,2102.4,2101.6,1.18956985]
[1770498213288,0.002,2102.4,2102.0,0.03349122]
[1770498213486,0.002,2102.4,2101.8,0.03349122]
[1770498213689,1.19111914,2102.4,2102.1,0.03349122]
[1770498214779,0.002,2102.4,2102.1,0.03349122]
[1770498215557,0.002,2102.4,2101.6,4.75823479]
[1770498215777,1.59994675,2102.4,2101.5,0.03349122]
[1770498216476,1.59794675,2101.9,2101.2,0.03349122]
[1770498216668,1.59794675,2101.9,2101.2,1.22328581]
[1770498216864,2.78739532,2101.9,2101.2,1.22328581]
[1770498218059,1.18937846,2102.0,2101.5,0.03349122]
[1770498218264,1.59794675,2102.2,2102.1,0.03349122]
[1770498218589,2.78909099,2102.4,2101.8,0.03349122]
[1770498218762,1.19114424,2102.4,2101.8,0.03349122]
[1770498219468,1.19114424,2102.4,2102.0,0.03349122]
[1770498219995,2.78909099,2102.4,2102.0,0.03349122]
[1770498220880,1.19114424,2102.4,2102.0,0.03349122]
[1770498221272,0.002,2102.8,2102.3,0.03349122]
[1770498221472,0.002,2102.8,2102.6,0.03349122]
[1770498221679,0.002,2102.8,2102.3,0.03349122]
[1770498223292,0.002,2102.8,2102.3,1.2226479]
[1770498223673,1.59994675,2102.8,2102.1,1.1892435]
[1770498224797,1.59994675,2102.8,2102.2,1.18922752]
[1770498225380,1.59994675,2102.8,2102.0,4.79076984]
[1770498225697,1.59994675,2102.8,2102.1,1.1892869]
[1770498225865,1.59994675,2102.8,2102.3,0.03349122]
[1770498226066,0.002,2102.8,2102.3,0.03349122]
[1770498226276,0.002,2102.8,2102.6,0.03349122]
[1770498226482,0.002,2102.8,2102.7,0.03349122]
[1770498227298,1.59794675,2103.2,2102.7,0.03349122]
[1770498227490,2.78644211,2103.5,2102.8,1.188891]
[1770498227993,2.78644211,2103.5,2103.0,0.03349122]
[1770498228194,2.78644211,2103.5,2102.8,1.188891]
[1770498228399,1.59794675,2103.4,2102.8,1.188891]
[1770498228778,1.59794675,2103.4,2103.0,0.03349122]
[1770498228983,1.59794675,2103.4,2102.8,1.188891]
[1770498229297,1.59794675,2103.4,2103.0,0.03349122]
[1770498230407,2.7865018,2103.4,2103.0,0.03349122]
[1770498230697,2.7865018,2103.4,2102.7,0.03349122]
[1770498230872,2.7865018,2103.4,2102.8,1.18887627]
[1770498231071,1.59794675,2103.4,2102.8,1.18887627]
[1770498231473,2.78650323,2103.4,2102.8,1.18887627]
[1770498231883,0.002,2103.3,2102.8,1.18887627]
[1770498234100,1.59994675,2103.3,2102.8,0.03349122]
[1770498234671,0.002,2103.3,2102.8,0.03349122]
[1770498234877,0.002,2103.3,2103.1,0.03349122]
[1770498236011,0.002,2103.5,2103.1,0.03349122]
[1770498236206,0.002,2103.5,2103.2,1.18866489]
[1770498236379,0.002,2103.5,2103.4,0.03349122]
[1770498236998,0.002,2103.8,2103.4,0.03349122]
[1770498237182,0.002,2103.8,2103.7,0.03349122]
[1770498237797,0.002,2104.2,2103.7,0.03349122]
[1770498238185,0.002,2104.2,2103.8,0.03349122]
[1770498238509,1.59994675,2104.2,2103.1,4.7881519]
[1770498238709,1.59994675,2104.2,2103.3,1.18857912]
[1770498238880,1.59994675,2104.2,2103.4,1.18854857]
[1770498239084,1.59994675,2104.2,2103.3,1.18856485]
[1770498239284,1.59994675,2104.2,2103.3,1.18856663]
[1770498239506,1.59994675,2104.2,2103.4,1.18855169]
[1770498240414,1.59794675,2104.0,2103.4,1.22204291]
[1770498240586,1.59794675,2104.0,2103.5,0.03349122]
[1770498241387,1.59794675,2104.0,2103.4,0.03349122]
[1770498241616,1.59794675,2104.0,2103.1,4.78829546]
[1770498241782,1.59794675,2103.9,2103.0,1.18876241]
[1770498241989,1.59794675,2103.9,2103.0,1.18875859]
[1770498242306,1.59794675,2103.9,2103.1,0.03349122]
[1770498242307,1.59794675,2103.7,2103.1,0.03349122]
[1770498243409,1.59794675,2104.0,2103.4,0.03349122]
[1770498243985,1.59994675,2104.0,2103.4,0.03349122]
[1770498244509,1.59994675,2104.0,2103.5,1.18849536]
[1770498244809,0.002,2104.0,2103.7,0.03349122]
[1770498245519,0.002,2104.0,2103.5,1.18849536]
[1770498246010,0.002,2104.0,2103.7,0.03349122]
[1770498246397,0.002,2104.0,2103.8,1.18832588]
[1770498249817,0.002,2104.6,2104.5,0.03349122]
[1770498250033,1.61694468,2104.5,2103.7,0.03349122]
[1770498250313,1.61694468,2104.5,2103.5,1.22198239]
[1770498250538,1.61694468,2104.3,2103.0,0.001]
[1770498250698,1.61694468,2104.3,2103.1,1.22220685]
[1770498251023,1.61694468,2104.3,2103.0,0.001]
[1770498251324,1.61694468,2104.3,2103.1,0.03349122]
[1770498251694,0.43288036,2104.3,2103.0,0.001]
[1770498251893,1.55315298,2104.2,2103.0,0.001]
[1770498252191,1.55315298,2104.1,2103.0,0.001]
[1770498252602,1.55315298,2103.9,2103.0,0.001]
[1770498253420,1.55315298,2103.9,2103.1,0.03349122]
[1770498253822,1.55315298,2103.9,2103.4,0.03349122]
[1770498254497,1.55315298,2103.9,2103.4,1.22202026]
[1770498255099,2.74129423,2104.2,2103.4,1.22202026]
[1770498255300,1.55315298,2104.1,2103.4,0.03349122]
[1770498255522,1.55315298,2104.1,2103.4,1.22204148]
[1770498255826,1.55315298,2104.1,2103.7,0.03349122]
[1770498257797,0.002,2103.8,2103.7,0.03349122]
[1770498258796,0.002,2103.8,2103.6,0.001]
[1770498259894,0.002,2103.8,2103.7,0.03349122]
[1770498260094,0.002,2104.0,2103.7,0.03349122]
[1770498261025,1.55515298,2104.0,2103.6,0.001]
[1770498261218,1.55315298,2103.9,2103.4,0.001]
[1770498263106,2.74143138,2103.9,2103.4,0.001]
[1770498265318,1.55315298,2103.8,2103.4,0.001]
[1770498267515,1.55315298,2103.6,2103.4,0.001]
[1770498268427,1.55315298,2103.6,2103.0,0.001]
[1770498268604,1.55315298,2103.6,2103.1,0.03349122]
[1770498270732,1.55315298,2103.6,2103.3,0.001]
[1770498271529,1.55315298,2103.5,2103.0,0.001]
[1770498271735,1.55315298,2103.5,2103.1,1.22221144]
[1770498271918,1.55315298,2103.5,2103.1,0.03349122]
[1770498272933,0.002,2103.7,2103.4,0.03349122]
[1770498273346,0.002,2103.7,2103.4,1.56004934]
[1770498273838,0.002,2103.7,2103.5,1.18849536]
[1770498275821,0.002,2103.7,2103.4,1.22199924]
[1770498276019,0.002,2103.7,2103.3,0.03349122]
[1770498276245,0.002,2103.7,2103.4,1.18854574]
[1770498277340,0.002,2103.7,2103.6,0.03349122]
[1770498277846,0.002,2103.7,2103.6,1.22193008]
[1770498278051,0.002,2103.9,2103.6,1.22193008]
[1770498278253,1.48905467,2104.4,2103.6,1.22193008]
[1770498278458,1.48905467,2104.4,2103.9,0.03349122]
[1770498279121,1.48905467,2104.4,2103.6,1.22193008]
[1770498279763,1.48905467,2104.4,2103.4,1.18854921]
[1770498279949,1.48905467,2104.4,2103.0,1.18977793]
[1770498279950,1.48905467,2104.2,2103.0,1.18977793]
[1770498280132,1.48905467,2104.2,2103.2,0.03349122]
[1770498281759,1.48905467,2104.2,2103.5,0.03349122]
[1770498281920,2.67708521,2104.4,2103.8,0.03349122]
[1770498282533,1.48905467,2104.3,2103.5,1.22195019]
[1770498283122,1.48905467,2104.3,2103.5,0.03349122]
[1770498283357,1.48905467,2104.3,2103.5,1.22198183]
[1770498283654,0.002,2104.0,2103.5,1.22198183]
[1770498284754,0.002,2104.0,2103.8,0.03349122]
[1770498284957,0.002,2104.0,2103.5,1.22198462]
[1770498287365,0.002,2104.0,2103.8,0.03349122]
[1770498287861,0.002,2104.0,2103.5,1.22198462]
[1770498287862,0.002,2104.0,2103.5,0.03349122]
[1770498288032,0.002,2104.0,2103.5,1.221985]
[1770498292161,0.002,2104.0,2103.5,2.83633795]
[1770498292346,0.002,2104.0,2103.8,0.03349122]
[1770498293059,0.002,2104.0,2103.8,1.22176087]
[1770498295537,0.002,2104.0,2103.6,1.61435295]
[1770498295744,0.002,2104.0,2103.6,1.18840292]
[1770498296366,1.49105467,2104.0,2103.5,1.22194245]
[1770498296867,1.49105467,2104.0,2103.7,0.001]
[1770498297169,0.002,2103.8,2103.7,0.001]
[1770498299048,0.002,2104.2,2103.9,0.03349122]
[1770498300758,0.002,2104.2,2103.9,1.22174096]
[1770498301356,1.49105467,2104.2,2103.7,0.001]
[1770498302044,1.49105467,2104.2,2103.8,0.03349122]
[1770498302363,1.48905467,2104.1,2103.7,0.001]
[1770498305056,0.002,2104.2,2103.7,0.001]
[1770498305566,0.002,2104.2,2104.1,0.03349122]
[1770498310678,0.002,2104.2,2104.1,1.22164767]
[1770498310885,0.002,2104.6,2104.1,2.81187465]
[1770498311655,0.002,2104.6,2104.1,1.22164767]
[1770498312549,1.61593116,2104.6,2104.1,1.22164767]
[1770498313456,0.002,2104.6,2104.1,1.22164767]
[1770498314757,0.002,2104.6,2104.4,1.63510354]
[1770498316091,0.002,2104.6,2104.4,0.03349122]
[1770498317383,0.002,2104.6,2104.4,1.22143094]
[1770498317571,0.002,2104.6,2104.3,1.1880164]
[1770498318785,0.002,2104.6,2104.4,1.18796496]
[1770498318956,0.002,2104.6,2104.4,1.22145618]
[1770498319670,0.002,2104.6,2104.3,1.18801264]
[1770498319971,0.002,2104.6,2104.4,1.22145691]
[1770498323262,0.002,2104.6,2104.4,1.18798188]
[1770498323488,0.002,2104.6,2104.4,1.22146537]
[1770498334675,0.002,2104.6,2104.4,0.03449122]
[1770498334901,1.61593116,2104.6,2104.4,0.001]
[1770498335081,1.61593116,2104.6,2104.2,0.001]
[1770498335282,1.61393116,2104.5,2104.2,0.001]
[1770498337087,1.61393116,2104.5,2104.3,0.03349122]
[1770498337286,0.002,2104.6,2104.3,0.03349122]
[1770498339379,1.5777563,2104.6,2104.2,0.001]
[1770498341585,2.76563926,2104.6,2104.2,0.001]
[1770498341780,1.5757563,2104.5,2104.2,0.001]
[1770498346380,2.76369151,2104.5,2104.2,0.001]
[1770498346708,1.5757563,2104.4,2104.2,0.001]
[1770498347788,0.002,2104.3,2104.2,0.001]
[1770498349116,1.5777563,2104.3,2104.2,0.001]
[1770498349326,0.002,2104.3,2104.2,0.001]
[1770498357019,1.5777563,2104.3,2104.2,0.001]
[1770498357513,0.002,2104.3,2104.2,0.001]
[1770498358999,0.002,2104.5,2104.3,0.03349122]
[1770498359354,0.002,2104.6,2104.3,1.69616483]
[1770498360706,0.002,2104.6,2104.3,2.88418238]
[1770498360900,0.004,2104.6,2104.3,0.03349122]
[1770498361222,1.5757563,2104.5,2104.4,0.001]
[1770498361401,1.5777563,2104.5,2103.8,1.18829799]
[1770498361596,1.5757563,2104.3,2103.8,1.22180999]
[1770498362096,0.002,2104.2,2103.8,1.22180999]
[1770498362496,0.002,2104.2,2103.7,0.001]
[1770498362497,1.5777563,2104.1,2103.7,0.001]
[1770498362696,1.5757563,2104.1,2103.7,0.001]
[1770498362914,1.5777563,2104.0,2103.7,0.001]
[1770498363527,0.002,2104.0,2103.7,0.001]
[1770498366929,1.58904749,2104.0,2103.7,0.001]
[1770498369137,1.58904749,2103.9,2103.7,0.001]
[1770498369340,1.58704749,2104.1,2103.7,0.001]
[1770498369811,0.002,2104.0,2103.7,0.001]
[1770498370010,0.002,2104.0,2103.8,0.03349122]
[1770498370212,1.58704749,2104.1,2103.8,0.03349122]
[1770498370440,0.002,2104.0,2103.8,0.03349122]
[1770498372728,0.002,2104.0,2103.7,0.001]
[1770498373446,1.63922571,2104.0,2103.9,0.001]
[1770498374139,1.64122571,2104.0,2103.9,0.001]
[1770498376233,0.004,2104.0,2103.9,0.001]
[1770498377412,1.64122571,2104.0,2103.9,0.001]
[1770498377832,0.004,2104.0,2103.9,0.001]
[1770498378325,0.002,2104.0,2103.7,0.001]
[1770498378638,0.001,2103.9,2103.7,0.001]
[1770498379140,0.002,2104.4,2104.1,0.03349122]
[1770498380237,0.002,2104.4,2104.1,2.93439096]
[1770498381627,0.002,2104.4,2104.3,0.03349122]
[1770498382124,0.002,2104.4,2104.1,1.08902736]
[1770498382323,0.002,2104.4,2104.1,1.18815491]
[1770498383034,0.002,2104.4,2104.0,1.18818144]
[1770498383241,0.002,2104.4,2104.1,1.18815122]
[1770498383433,0.002,2104.4,2104.0,1.18817333]
[1770498383636,0.002,2104.4,2103.9,2.90101142]
[1770498383940,0.002,2104.4,2103.9,1.1882406]
[1770498384252,0.002,2104.4,2103.9,1.1882694]
[1770498384541,0.002,2104.4,2103.8,4.78670244]
[1770498384542,1.63922571,2104.4,2103.8,1.2218132]
[1770498386041,1.63922571,2104.4,2104.1,0.03349122]
[1770498386247,0.002,2104.6,2104.3,0.001]
[1770498389144,1.63922571,2104.6,2104.3,0.001]
[1770498389338,1.63922571,2104.6,2104.0,0.001]
[1770498389646,1.63922571,2104.6,2103.7,0.001]
[1770498389942,1.63922571,2104.6,2103.8,1.18931781]
[1770498390452,1.63922571,2104.6,2103.8,0.001]
[1770498391226,1.18793062,2104.5,2103.8,0.001]
[1770498391542,1.63722571,2104.4,2103.8,0.001]
[1770498391926,1.63722571,2104.4,2103.9,0.001]
[1770498393452,2.82526923,2104.3,2103.9,0.001]
[1770498394458,1.63722571,2104.3,2103.9,0.001]
[1770498394666,0.002,2104.6,2104.0,0.03349122]
[1770498394952,2.82710707,2104.6,2104.0,0.03349122]
[1770498395158,2.82710707,2104.6,2104.1,0.001]
[1770498398656,2.82710707,2104.6,2104.3,0.001]
[1770498399056,0.002,2104.4,2104.3,0.001]
[1770498400137,0.002,2104.4,2104.3,0.002]
[1770498400335,0.002,2104.4,2104.3,0.001]
[1770498402564,1.68632499,2104.4,2104.3,0.001]
[1770498402769,1.68632499,2104.4,2104.0,0.001]
[1770498404948,1.68432499,2104.2,2104.0,0.001]
[1770498405666,1.18804352,2104.3,2104.0,0.001]
[1770498405967,2.87236851,2104.3,2104.0,0.002]
[1770498407169,1.68432499,2104.2,2104.0,0.002]
[1770498409699,2.87244081,2104.2,2104.0,0.002]
[1770498411559,1.68432499,2104.2,2104.0,0.002]
[1770498412378,0.002,2104.4,2104.0,0.001]
[1770498412568,0.002,2104.4,2104.2,1.71210406]
[1770498412744,0.001,2104.4,2104.2,1.71210406]
[1770498413775,0.001,2104.4,2104.0,1.74659528]
[1770498414160,0.001,2104.4,2104.0,1.71310406]
[1770498414359,0.001,2104.4,2104.0,0.001]
[1770498415368,1.68532499,2104.4,2104.0,0.001]
[1770498420992,0.001,2104.4,2104.0,0.001]
[1770498423574,0.001,2104.4,2104.2,0.001]
[1770498424891,0.002,2104.7,2104.2,0.001]
[1770498424892,0.002,2104.7,2104.4,1.71210406]
[1770498425390,0.004,2104.7,2104.2,1.71310406]
[1770498427167,0.004,2104.7,2104.3,1.22153152]
[1770498428795,0.002,2104.7,2104.3,2.80115477]
[1770498429292,0.002,2104.7,2104.4,1.57962325]
[1770498431293,0.002,2104.7,2104.5,1.18793062]
[1770498431593,0.002,2104.7,2104.5,2.81255025]
[1770498433695,0.002,2104.7,2104.6,1.62461963]
[1770498436280,0.002,2105.1,2104.7,1.62461963]
[1770498436475,0.004,2105.1,2104.7,1.62461963]
[1770498436975,0.004,2105.1,2104.9,0.03349122]
[1770498437777,0.004,2105.1,2104.9,1.65811085]
[1770498438670,0.002,2105.1,2104.9,2.84579169]
[1770498438875,0.002,2105.2,2104.9,1.22117206]
[1770498439076,0.002,2105.2,2105.0,1.62461963]
[1770498439473,0.002,2105.2,2104.9,1.22117206]
[1770498439800,0.002,2105.2,2104.9,2.84579169]
[1770498440978,0.32075236,2105.4,2104.9,2.84579169]
[1770498440979,0.24170164,2105.4,2105.0,1.62461963]
[1770498441311,0.002,2105.5,2105.0,1.62461963]
[1770498441679,0.002,2105.5,2105.2,0.03349122]
[1770498443909,0.002,2105.5,2105.2,1.22102012]
[1770498444124,1.65918889,2105.5,2105.0,1.18761154]
[1770498444435,1.65918889,2105.5,2105.1,1.18757599]
[1770498444590,1.65918889,2105.5,2105.1,1.18758978]
[1770498445574,0.002,2105.5,2105.3,0.03349122]
[1770498445790,0.002,2105.6,2105.3,0.03349122]
[1770498447217,0.002,2105.6,2105.4,1.62461963]
[1770498447417,0.002,2105.8,2105.4,1.62461963]
[1770498447617,0.002,2105.8,2105.6,0.03349122]
[1770498447798,1.65718889,2106.5,2105.8,1.62461963]
[1770498447998,1.65718889,2106.4,2105.6,1.18728982]
[1770498448303,1.65718889,2106.2,2105.6,1.18729716]
[1770498449928,1.65718889,2106.2,2105.4,1.18842281]
[1770498450831,1.65718889,2106.2,2105.6,0.03349122]
[1770498452534,1.65718889,2106.2,2105.6,1.22075859]
[1770498455840,0.002,2106.5,2105.9,1.71848701]
[1770498456040,0.002,2106.5,2106.2,0.03349122]
[1770498457542,1.72356496,2106.4,2105.6,1.22075859]
[1770498457755,1.72356496,2106.3,2105.6,1.22075437]
[1770498458120,1.72356496,2106.3,2105.6,0.03349122]
[1770498458319,4.3146283,2106.1,2105.4,0.001]
[1770498458544,1.72356496,2106.0,2105.4,0.001]
[1770498459225,1.72356496,2106.0,2105.4,1.1883945]
[1770498459719,1.72356496,2106.0,2105.4,0.001]
[1770498459920,2.91066089,2106.0,2105.4,0.001]
[1770498460128,1.72356496,2105.9,2105.4,0.001]
[1770498461969,2.91070584,2105.9,2105.8,0.001]
[1770498462159,1.72356496,2105.8,2105.1,0.001]
[1770498462448,1.72356496,2105.8,2104.9,0.001]
[1770498462751,2.06996759,2105.8,2104.9,0.001]
[1770498464146,1.72356496,2105.6,2104.9,0.001]
[1770498466955,1.18736642,2105.5,2104.9,0.001]
[1770498467259,1.72356496,2105.4,2104.9,0.001]
[1770498469670,2.91104417,2105.3,2104.9,0.001]
[1770498471266,1.18747921,2105.3,2104.9,0.001]
[1770498471571,1.72356496,2105.2,2104.9,0.001]
[1770498472070,2.91103019,2105.4,2104.9,0.001]
[1770498473152,1.72356496,2105.3,2104.9,0.001]
[1770498473568,1.72356496,2105.3,2104.4,0.001]
[1770498474269,1.72356496,2105.1,2104.9,0.001]
[1770498475046,1.72356496,2105.1,2104.4,0.001]
[1770498476368,1.72356496,2104.9,2104.4,0.001]
[1770498476988,1.72356496,2104.9,2104.2,0.001]
[1770498477143,1.72356496,2104.9,2103.7,0.001]
[1770498479255,1.72356496,2104.7,2103.7,0.001]
[1770498481577,5.76715348,2104.5,2103.7,0.001]
[1770498481748,1.72356496,2104.4,2103.5,0.001]
[1770498482074,1.72356496,2104.4,2103.4,0.001]
[1770498483851,1.72356496,2104.2,2103.4,0.001]
[1770498484257,1.72356496,2104.2,2103.5,0.03349122]
[1770498484465,1.18804352,2104.3,2103.5,1.71848701]
[1770498484876,1.18790848,2104.6,2103.8,1.71848701]
[1770498485078,1.18771793,2104.9,2104.1,0.03349122]
[1770498485582,1.18771793,2104.9,2104.1,1.75056098]
[1770498485950,6.47417656,2105.0,2104.2,2.90516975]
[1770498485951,1.1876612,2105.0,2104.2,2.90516975]
[1770498486157,1.18763323,2105.1,2104.2,2.90516975]
[1770498486552,1.6714231,2105.0,2104.2,1.18809999]
[1770498488085,1.18770487,2104.9,2104.2,1.18809999]
[1770498488287,1.6714231,2104.8,2103.9,1.18822966]
[1770498488488,1.6714231,2104.8,2103.8,1.18829389]
[1770498488692,1.6714231,2104.8,2103.7,2.9054199]
[1770498489190,1.6714231,2104.8,2103.6,1.71806976]
[1770498489492,1.18762047,2105.1,2104.2,1.75056098]
[1770498489657,1.18762047,2105.1,2103.4,0.001]
[1770498489658,1.6714231,2104.7,2103.4,0.001]
[1770498489860,0.1024,2103.9,2102.8,0.001]
[1770498490086,1.6714231,2103.4,2102.6,0.001]
[1770498490663,1.6714231,2103.2,2101.9,0.03449122]
[1770498491082,1.6714231,2103.0,2101.9,0.001]
[1770498491882,1.66895934,2102.8,2101.9,0.001]
[1770498492087,1.66895934,2102.6,2101.9,0.001]
[1770498493063,1.66895934,2102.3,2101.2,1.22327602]
[1770498493294,1.66895934,2102.3,2100.9,0.03349122]
[1770498493463,1.66895934,2102.3,2101.0,1.18990397]
[1770498493998,1.66895934,2102.3,2100.9,1.22342657]
[1770498494299,1.66895934,2102.3,2100.0,5.11272411]
[1770498494300,1.66895934,2101.8,2100.4,1.19021753]
[1770498494592,1.66895934,2101.8,2100.5,1.19018989]
[1770498495305,1.66895934,2101.8,2100.2,1.19032665]
[1770498495306,1.66895934,2101.7,2100.2,1.19032665]
[1770498495589,1.66895934,2101.7,2100.1,0.03349122]
[1770498495779,1.66895934,2101.7,2100.5,1.19015312]
[1770498496184,1.66895934,2101.3,2100.2,1.22382301]
[1770498496494,1.66895934,2101.3,2100.3,1.19029722]
[1770498496692,1.66895934,2101.3,2100.4,1.19024895]
[1770498496897,1.66895934,2101.6,2100.8,0.03349122]
[1770498498188,1.66895934,2101.6,2100.9,1.1899662]
[1770498499795,1.66895934,2102.0,2101.5,0.03349122]
[1770498500167,1.66895934,2102.0,2101.6,1.18956985]
[1770498501694,4.75584048,2102.7,2101.8,0.03349122]
[1770498501695,1.66895934,2102.4,2101.8,0.03349122]
[1770498502195,1.66895934,2102.4,2101.9,1.18940006]
[1770498503093,1.66895934,2102.7,2102.1,0.03349122]
[1770498504577,1.66895934,2102.7,2102.2,1.18923033]
[1770498508795,5.34101209,2103.4,2102.4,0.03349122]
[1770498508796,1.66895934,2103.4,2102.4,0.03349122]
[1770498510583,1.66895934,2103.3,2102.1,1.18924343]
[1770498510802,1.66895934,2102.9,2101.5,1.22311023]
[1770498512011,1.66895934,2102.9,2101.8,0.03349122]
[1770498512607,1.66895934,2102.9,2102.1,0.03349122]
[1770498512906,1.66895934,2102.9,2102.2,1.18923033]
[1770498513492,1.66895934,2102.9,2102.4,0.03349122]
[1770498515192,1.66895934,2102.8,2102.2,1.18923033]
[1770498515800,1.66895934,2102.8,2101.8,1.18942188]
[1770498515998,1.66895934,2102.8,2101.9,1.18939384]
[1770498516312,1.66895934,2102.8,2101.8,1.18943063]
[1770498516520,1.66895934,2102.8,2101.9,1.18939893]
[1770498517407,1.51499809,2102.6,2101.6,1.18956985]
[1770498519706,1.51499809,2102.4,2101.6,1.18956985]
[1770498521191,1.51499809,2102.4,2101.5,1.18958469]
[1770498521814,1.51499809,2102.3,2101.7,0.03349122]
[1770498522498,1.51499809,2102.3,2101.5,1.18958469]
[1770498524222,1.51499809,2102.3,2101.7,0.03349122]
[1770498524720,1.51699809,2102.6,2102.0,0.03349122]
[1770498524928,1.51699809,2102.6,2101.5,1.18958469]
[1770498524929,1.51499809,2102.5,2101.5,1.18958469]
[1770498525602,1.51499809,2102.5,2101.7,0.03349122]
[1770498526523,1.51499809,2102.4,2101.8,1.18945665]
[1770498527726,1.51499809,2102.4,2102.0,0.03349122]
[1770498528428,1.51499809,2102.4,2101.8,1.18945665]
[1770498528799,1.51499809,2102.3,2101.7,1.18947248]
[1770498529428,1.51499809,2102.3,2101.6,1.18952649]
[1770498530424,1.51499809,2102.3,2101.7,1.18951158]
[1770498530928,1.51499809,2102.3,2101.5,4.75844296]
[1770498530929,1.51499809,2102.2,2101.5,4.75844296]